bitfinex-derivatives/quotes_SOLF0:USTF0_20251023
["timestamp","ask_amount","ask_price","bid_price","bid_amount"]
[1761225950614,2.66,189.78,189.77,5.04636084]
[1761225951016,44.18,189.79,189.77,5.04636084]
[1761225951218,44.18,189.79,189.75,2.49]
[1761225951415,44.18,189.79,189.76,7.5372567]
[1761225951726,44.18,189.79,189.77,5.0472567]
[1761225951932,2.66,189.78,189.74,7.2326]
[1761225952120,2.66,189.78,189.75,5.04747944]
[1761225952422,2.66,189.78,189.76,5.04747944]
[1761225952625,2.66,189.78,189.77,5.04747944]
[1761225953723,44.18,189.79,189.77,5.04747944]
[1761225953923,46.84,189.79,189.75,2.49]
[1761225954124,46.84,189.79,189.76,5.05077448]
[1761225954326,44.18,189.79,189.77,5.05077448]
[1761225954527,44.18,189.79,189.77,2.49]
[1761225954726,46.84,189.79,189.75,2.49]
[1761225955026,46.84,189.79,189.76,5.05189589]
[1761225955332,46.84,189.79,189.77,5.05189589]
[1761225955532,46.84,189.79,189.78,5.05189589]
[1761225955826,2.66,189.78,189.74,4.7426]
[1761225956134,2.66,189.78,189.75,5.05491304]
[1761225956327,2.66,189.78,189.76,5.05491304]
[1761225956626,2.66,189.78,189.77,5.05491304]
[1761225957635,2.66,189.78,189.74,4.7426]
[1761225957838,2.66,189.78,189.75,4.78717833]
[1761225958038,5.47483734,189.78,189.72,7.2331]
[1761225958337,2.66,189.77,189.73,4.78746316]
[1761225958537,2.66,189.77,189.74,4.78746316]
[1761225958841,2.66,189.77,189.73,2.49]
[1761225959137,2.66,189.77,189.74,4.78903371]
[1761225959338,2.66,189.77,189.73,2.49]
[1761225959640,2.66,189.77,189.74,4.79148404]
[1761225959935,2.66,189.77,189.73,2.49]
[1761225960133,2.66,189.77,189.74,4.79165067]
[1761225960327,49.58483734,189.79,189.75,2.49]
[1761225960531,4.741,189.81,189.75,2.49]
[1761225960532,44.16,189.78,189.75,2.49]
[1761225960735,44.16,189.78,189.76,7.28215007]
[1761225960928,44.16,189.78,189.77,2.49]
[1761225961325,44.16,189.78,189.75,4.7422]
[1761225961529,44.16,189.78,189.76,7.28446326]
[1761225961731,44.16,189.78,189.76,2.49]
[1761225962142,46.75,189.78,189.74,2.49]
[1761225962439,44.16,189.78,189.76,2.49]
[1761225962635,44.16,189.78,189.77,7.28614399]
[1761225963141,12.29253734,189.9,189.78,2.49]
[1761225963142,44.16,189.82,189.78,2.49]
[1761225963342,44.16,189.82,189.8,2.49]
[1761225964144,44.16,189.84,189.81,7.29024385]
[1761225964443,44.16,189.84,189.82,7.29024385]
[1761225964636,44.16,189.84,189.82,2.49]
[1761225965241,44.16,189.84,189.77,4.82096147]
[1761225965242,2.59,189.87,189.83,9.55256912]
[1761225965542,46.75,189.87,189.84,4.81226912]
[1761225965744,46.75,189.87,189.85,4.81226912]
[1761225965939,44.16,189.87,189.86,4.81226912]
[1761225966541,19.976,189.87,189.86,7.30226912]
[1761225966746,2.59,189.94,189.87,2.49]
[1761225967041,2.59,189.94,189.88,7.30226912]
[1761225967239,2.59,189.94,189.89,7.30226912]
[1761225967452,2.59,189.94,189.9,7.30226912]
[1761225967641,2.59,189.94,189.91,4.81226912]
[1761225967842,2.59,189.94,189.9,2.49]
[1761225968140,44.16,189.95,189.91,7.3000073]
[1761225968342,44.16,189.95,189.92,4.80854115]
[1761225968343,2.59,189.94,189.92,4.80854115]
[1761225968547,2.59,189.94,189.86,4.82096147]
[1761225968846,2.59,189.94,189.87,4.80854453]
[1761225969046,2.59,189.94,189.88,4.80854453]
[1761225969247,2.59,189.94,189.89,4.80854453]
[1761225969454,2.59,189.92,189.9,4.80854453]
[1761225969646,2.59,189.89,189.82,2.49]
[1761225969841,154.59483734,189.99,189.84,2.49]
[1761225969842,44.16,189.88,189.84,2.49]
[1761225970048,2.59,189.93,189.86,2.49]
[1761225970235,2.59,189.93,189.85,9.62823304]
[1761225970236,46.75,189.92,189.87,7.29727157]
[1761225970438,44.14,189.91,189.88,4.80727157]
[1761225970645,46.73,189.91,189.89,4.80727157]
[1761225970843,2.59,189.9,189.84,4.82096147]
[1761225971034,2.59,189.9,189.85,4.80432462]
[1761225971236,2.59,189.9,189.86,4.80432462]
[1761225971448,2.59,189.9,189.87,4.80432462]
[1761225971648,2.59,189.9,189.88,4.80432462]
[1761225971949,2.59,189.9,189.83,7.2304]
[1761225972150,2.59,189.9,189.84,4.80291928]
[1761225972349,2.59,189.9,189.83,7.2304]
[1761225972350,2.59,189.9,189.85,4.80291928]
[1761225972544,2.59,189.9,189.83,7.2304]
[1761225972545,2.59,189.9,189.86,4.80291928]
[1761225972746,44.14,189.91,189.87,4.80291928]
[1761225972950,44.14,189.91,189.88,4.80291928]
[1761225972951,2.59,189.9,189.88,4.80291928]
[1761225973251,2.59,189.9,189.84,7.23]
[1761225973552,2.59,189.9,189.85,7.29023569]
[1761225973752,2.59,189.9,189.86,4.80023569]
[1761225973938,2.59,189.9,189.87,7.29023569]
[1761225974145,2.59,189.92,189.88,7.29023569]
[1761225974452,2.59,189.92,189.88,2.49]
[1761225974646,2.59,189.92,189.89,7.28628374]
[1761225974844,2.59,189.92,189.9,4.79628374]
[1761225975039,2.59,189.92,189.86,2.49]
[1761225975242,2.59,189.92,189.88,2.49]
[1761225975441,2.59,189.92,189.89,4.79459058]
[1761225975648,2.59,189.92,189.88,2.49]
[1761225975848,2.59,189.92,189.89,4.79419311]
[1761225976047,44.14,189.93,189.88,2.49]
[1761225976248,44.14,189.93,189.89,4.792722]
[1761225976552,44.14,189.93,189.9,7.282722]
[1761225976752,2.59,189.98,189.9,2.49]
[1761225976947,44.14,189.97,189.91,7.28134103]
[1761225977151,46.73,189.97,189.91,2.49]
[1761225977752,5.40483734,189.95,189.88,4.7391]
[1761225977952,5.40483734,189.95,189.89,4.78877976]
[1761225978148,2.59,189.94,189.9,4.78877976]
[1761225978352,2.81483734,189.95,189.9,2.49]
[1761225979356,5.40483734,189.95,189.9,2.49]
[1761225980055,2.59,189.95,189.9,2.49]
[1761225980255,2.59,189.95,189.89,4.7388]
[1761225980256,2.59,189.92,189.86,4.7397]
[1761225980450,2.59,189.92,189.88,2.49]
[1761225982651,4.7381,189.93,189.88,2.49]
[1761225982854,4.7375,189.95,189.88,2.49]
[1761225983055,2.81483734,189.96,189.9,2.49]
[1761225983748,2.81483734,189.96,189.91,2.49]
[1761225984157,51.4671,189.97,189.91,2.49]
[1761225984158,48.8771,189.97,189.91,2.49]
[1761225984659,1.79671156,189.94,189.86,1.79671156]
[1761225984857,1.79671156,189.94,189.87,7.26907107]
[1761225985165,1.79671156,189.95,189.89,2.49]
[1761225985455,1.79671156,189.95,189.9,4.77953146]
[1761225985756,1.79671156,189.95,189.92,2.48]
[1761225986548,44.14,189.97,189.87,1.79671156]
[1761225986549,44.14,189.97,189.88,2.48]
[1761225986754,1.79671156,189.96,189.9,2.48]
[1761225988049,1.79671156,189.96,189.92,2.48]
[1761225988555,1.79671156,189.98,189.95,2.48]
[1761225989764,2.79,190.0,189.95,2.48]
[1761225989963,2.79,190.0,189.96,2.48]
[1761225989964,4.58671156,190.0,189.96,2.48]
[1761225990262,1.79671156,190.01,189.96,2.48]
[1761225991852,273.9209447,190.05,189.98,2.48]
[1761225992058,1.79671156,190.02,189.98,2.48]
[1761225992365,2.6,190.02,189.98,2.48]
[1761225992561,4.7351,190.05,190.0,2.48]
[1761225992873,1.79671156,190.02,190.0,2.48]
[1761225993361,1.79671156,190.03,190.01,4.7358]
[1761225993562,1.79671156,190.05,190.02,2.48]
[1761225994361,2.6,190.07,190.02,2.48]
[1761225994663,1.79671156,190.05,190.02,7.2156]
[1761225995164,2.6,190.07,190.02,7.2156]
[1761225995363,2.6,190.18,190.05,1.79671156]
[1761225995570,2.6,190.29,190.15,2.48]
[1761225995763,1.79671156,190.24,190.17,2.48]
[1761225995962,46.78,190.28,190.18,7.26547584]
[1761225996160,2.6,190.35,190.18,2.48]
[1761225996463,1.79671156,190.33,190.24,2.48]
[1761225996655,7.16300766,190.27,190.17,2.48]
[1761225996855,2.6,190.25,190.12,2.48]
[1761225997060,2.6,190.22,190.13,4.76693135]
[1761225997257,44.54,190.25,190.14,4.7616256]
[1761225997562,4.56300766,190.28,190.14,2.48]
[1761225997563,2.6,190.24,190.14,2.48]
[1761225997767,2.6,190.24,190.15,4.76084927]
[1761225998072,2.6,190.24,190.14,2.48]
[1761225998260,2.6,190.24,190.15,4.75475239]
[1761225998464,44.58,190.23,190.14,2.48]
[1761225998655,44.58,190.23,190.15,7.23459326]
[1761225998858,44.58,190.23,190.16,7.23459326]
[1761225999063,44.58,190.23,190.16,2.48]
[1761225999656,44.58,190.23,190.11,2.48]
[1761225999856,2.6,190.22,190.12,4.74991624]
[1761226000056,2.6,190.22,190.11,2.48]
[1761226000363,44.58,190.21,190.13,2.48]
[1761226000562,2.6,190.22,190.14,4.74555036]
[1761226000766,44.6,190.23,190.13,2.48]
[1761226000968,2.6,190.22,190.14,4.74574133]
[1761226001160,2.6,190.22,190.13,2.48]
[1761226002971,4.731,190.21,190.13,2.48]
[1761226003367,2.6,190.2,190.13,2.48]
[1761226003564,2.6,190.2,190.07,110.02819259]
[1761226003565,4.7315,190.19,190.08,2.48]
[1761226003772,4.56300766,190.2,190.1,2.48]
[1761226003773,2.6,190.18,190.1,2.48]
[1761226003958,2.6,190.21,190.11,4.74137289]
[1761226004268,2.6,190.21,190.12,4.74137289]
[1761226004468,2.6,190.26,190.14,2.48]
[1761226004665,2.6,190.31,190.16,2.48]
[1761226004969,2.6,190.31,190.18,2.48]
[1761226005169,2.6,190.31,190.2,2.48]
[1761226005371,2.6,190.35,190.22,2.48]
[1761226005564,2.6,190.35,190.24,2.48]
[1761226005767,2.6,190.4,190.29,2.48]
[1761226005969,2.6,190.4,190.31,2.48]
[1761226006364,4.56300766,190.43,190.31,2.48]
[1761226006568,7.16300766,190.43,190.32,4.71553047]
[1761226006763,7.16300766,190.43,190.32,2.48]
[1761226007168,4.7256,190.43,190.32,2.48]
[1761226007365,2.6,190.42,190.32,2.48]
[1761226008172,2.6,190.42,190.24,2.48]
[1761226008373,2.6,190.42,190.26,2.48]
[1761226008578,2.6,190.41,190.3,4.7287]
[1761226008874,2.6,190.42,190.31,2.48]
[1761226009173,7.326,190.41,190.31,2.48]
[1761226009373,2.6,190.4,190.31,2.48]
[1761226009675,4.7266,190.39,190.31,2.48]
[1761226009864,9.28960766,190.39,190.31,2.48]
[1761226010069,2.6,190.38,190.28,4.7292]
[1761226010276,2.6,190.38,190.2,2.48]
[1761226010472,2.6,190.23,190.08,0.20318]
[1761226010676,2.6,190.23,190.09,4.70654616]
[1761226010869,13.38300766,190.24,190.08,0.20318]
[1761226010870,4.56300766,190.2,190.08,4.93718]
[1761226011172,4.56300766,190.16,190.08,0.20318]
[1761226011377,15.86,190.24,190.09,4.71147169]
[1761226011378,4.56300766,190.24,190.09,4.71147169]
[1761226011576,2.6,190.25,190.1,4.71147169]
[1761226011778,2.6,190.25,190.11,4.71147169]
[1761226011977,2.6,190.25,190.08,4.76618766]
[1761226011978,2.6,190.25,190.12,4.71147169]
[1761226012179,2.6,190.25,190.08,4.76618766]
[1761226012379,2.6,190.25,190.14,4.7326]
[1761226012878,4.56300766,190.3,190.16,2.39]
[1761226013178,76.42213782,190.32,190.18,2.39]
[1761226013383,76.42213782,190.32,190.2,2.39]
[1761226013580,76.42213782,190.32,190.16,4.56300766]
[1761226013581,76.42213782,190.32,190.21,2.39]
[1761226013782,2.6,190.31,190.21,7.1208]
[1761226013980,2.6,190.31,190.21,2.39]
[1761226015074,2.6,190.31,190.23,4.7305]
[1761226015271,45.4,190.34,190.23,2.39]
[1761226015470,48.0,190.34,190.23,2.39]
[1761226015680,15.86,190.46,190.25,2.39]
[1761226015681,2.6,190.38,190.25,2.39]
[1761226016476,7.3269,190.38,190.28,4.7292]
[1761226016984,2.6,190.37,190.28,4.7292]
[1761226017586,2.6,190.34,190.2,2.39]
[1761226017982,2.6,190.32,190.2,2.39]
[1761226018190,2.6,190.31,190.22,4.7305]
[1761226018379,2.6,190.31,190.2,2.39]
[1761226018380,2.6,190.3,190.14,2.39]
[1761226018774,2.68,190.27,190.17,4.732]
[1761226019680,4.56300766,190.31,190.14,2.39]
[1761226019681,2.68,190.25,190.14,2.39]
[1761226020085,2.68,190.3,190.16,4.56300766]
[1761226020387,2.68,190.3,190.18,2.38]
[1761226020989,2.68,190.3,190.22,4.7307]
[1761226023395,2.68,190.3,190.19,4.7314]
[1761226023691,2.68,190.28,190.19,4.7314]
[1761226025387,2.68,190.28,190.18,2.38]
[1761226025594,2.68,190.27,190.14,6.94300766]
[1761226025797,2.68,190.27,190.16,2.38]
[1761226025997,2.68,190.27,190.17,4.70390632]
[1761226026190,2.68,190.27,190.16,2.38]
[1761226026391,2.68,190.27,190.17,4.70666154]
[1761226026695,2.68,190.27,190.16,2.38]
[1761226026894,2.68,190.27,190.17,4.70666669]
[1761226027095,2.68,190.27,190.19,4.7314]
[1761226027396,2.68,190.27,190.16,2.38]
[1761226027593,2.68,190.27,190.17,7.09048762]
[1761226027793,2.68,190.27,190.2,4.731]
[1761226028593,2.68,190.27,190.17,2.38]
[1761226028797,2.68,190.27,190.13,6.94300766]
[1761226029096,2.68,190.27,190.14,7.09554022]
[1761226029298,2.68,190.27,190.15,4.71554022]
[1761226029499,2.68,190.27,190.16,4.71554022]
[1761226029695,7.4099,190.26,190.18,4.7315]
[1761226029886,2.68,190.26,190.18,2.38]
[1761226030092,7.84,190.34,190.2,2.38]
[1761226030394,7.4083,190.32,190.22,4.7305]
[1761226030699,2.68,190.31,190.22,4.7305]
[1761226031392,7.4087,190.31,190.22,4.7305]
[1761226031587,2.68,190.3,190.2,7.1112]
[1761226031894,2.68,190.3,190.21,4.72607492]
[1761226032200,2.68,190.29,190.22,4.73109927]
[1761226032383,2.68,190.29,190.21,4.7308]
[1761226032703,2.68,190.29,190.23,4.7303]
[1761226032993,2.68,190.29,190.14,0.21645]
[1761226032994,4.56300766,190.24,190.14,0.21645]
[1761226033191,73.82310673,190.29,190.04,2.38]
[1761226033192,2.68,190.18,190.04,2.38]
[1761226033398,2.68,190.18,190.05,4.74284214]
[1761226033600,2.68,190.18,190.04,2.38]
[1761226034089,2.68,190.15,190.04,2.38]
[1761226034393,4.56300766,190.13,189.98,2.38]
[1761226034590,4.56300766,190.09,189.98,2.38]
[1761226034789,2.68,190.08,189.98,2.38]
[1761226035195,4.56300766,190.05,189.91,2.38]
[1761226035494,7.24300766,190.05,189.91,2.38]
[1761226035689,7.24300766,190.05,189.94,4.7377]
[1761226036296,19.7,190.09,189.97,2.38]
[1761226036297,7.24300766,190.09,189.97,2.38]
[1761226036594,2.68,190.08,189.97,2.38]
[1761226036790,4.56300766,190.05,189.97,2.38]
[1761226037390,4.56300766,190.05,189.97,7.117]
[1761226039594,2.68,190.08,189.98,2.38]
[1761226039986,2.68,190.08,190.0,7.1162]
[1761226040187,2.68,190.08,190.0,2.38]
[1761226040395,7.24300766,190.13,190.0,2.38]
[1761226040799,2.68,190.13,190.04,2.38]
[1761226041596,2.68,190.12,189.99,2.38]
[1761226042396,2.68,190.1,190.01,2.38]
[1761226042596,2.68,190.15,190.01,2.38]
[1761226042993,2.68,190.13,190.01,2.38]
[1761226043394,7.4132,190.13,190.04,4.7352]
[1761226043697,4.56300766,190.12,190.01,2.38]
[1761226043999,2.68,190.11,190.01,2.38]
[1761226044203,7.4135,190.11,190.03,4.7354]
[1761226044505,2.68,190.11,190.03,4.7354]
[1761226046701,2.68,190.11,190.01,7.116]
[1761226048002,2.79,190.09,190.01,4.736]
[1761226048598,4.7342,190.08,189.97,2.39]
[1761226048798,2.82,190.07,189.97,2.39]
[1761226049703,2.82,190.06,189.97,2.39]
[1761226050205,2.82,190.06,189.87,62.0]
[1761226050206,2.82,190.05,189.88,2.39]
[1761226050704,2.82,190.05,189.88,9.4782]
[1761226050902,2.82,190.05,189.89,2.39]
[1761226051992,2.82,190.05,189.98,4.7365]
[1761226052909,7.5551,190.05,189.95,2.39]
[1761226054106,7.5551,190.05,189.98,4.7365]
[1761226054308,2.82,190.04,189.98,4.7365]
[1761226054502,2.82,190.03,189.97,4.7368]
[1761226054696,2.82,190.03,189.95,2.39]
[1761226054697,2.82,190.06,189.96,2.39]
[1761226055207,4.7349,190.06,189.98,4.7366]
[1761226055401,7.5549,190.06,189.98,4.7366]
[1761226055607,7.52216871,190.08,189.93,2.39]
[1761226055608,2.82,190.05,189.93,2.39]
[1761226055808,7.5552,190.04,189.95,4.7374]
[1761226056102,7.5552,190.04,189.93,2.39]
[1761226057104,4.7352,190.04,189.93,2.39]
[1761226057406,2.82,190.03,189.93,2.39]
[1761226059114,2.82,190.03,189.97,4.7368]
[1761226060207,4.7347,190.07,189.97,2.39]
[1761226060406,7.5547,190.07,189.97,2.39]
[1761226062017,7.5547,190.07,190.0,4.7361]
[1761226062509,4.7348,190.06,189.98,4.7366]
[1761226062711,7.5548,190.06,189.97,2.39]
[1761226062909,2.82,190.05,189.97,2.39]
[1761226063111,2.82,190.04,189.92,2.39]
[1761226063614,2.82,190.04,189.98,4.7365]
[1761226070425,20.76597911,190.13,189.95,2.39]
[1761226070426,2.82,190.03,189.95,2.39]
[1761226071420,7.5558,190.02,189.95,2.39]
[1761226073026,7.5558,190.02,189.96,4.7371]
[1761226077219,2.82,190.0,189.94,4.7377]
[1761226080030,2.61,189.98,189.94,4.7377]
[1761226080229,2.61,189.98,189.92,4.7381]
[1761226080435,4.7366,189.99,189.89,2.39]
[1761226080931,7.3466,189.99,189.89,2.39]
[1761226081335,7.3466,189.99,189.94,7.1276]
[1761226082335,2.61,189.98,189.94,7.1276]
[1761226084928,4.7366,189.99,189.94,7.1276]
[1761226085130,2.61,190.03,189.95,2.39]
[1761226085830,2.61,190.01,189.96,4.7371]
[1761226086639,2.61,190.01,189.96,7.1271]
[1761226087036,2.61,190.04,189.97,4.7369]
[1761226087830,2.61,190.03,189.95,4.7374]
[1761226088840,2.61,189.99,189.93,4.7378]
[1761226089034,2.61,189.99,189.89,4.79941352]
[1761226089239,2.61,189.99,189.89,2.39]
[1761226089838,7.3467,189.98,189.93,4.7378]
[1761226090139,2.61,189.97,189.93,4.7378]
[1761226090539,2.61,189.97,189.91,4.7383]
[1761226090837,2.61,189.97,189.89,2.39]
[1761226091241,2.61,189.97,189.93,7.1279]
[1761226091428,4.7363,190.0,189.93,4.7379]
[1761226091628,4.7363,190.0,189.94,4.7376]
[1761226091829,7.3463,190.0,189.94,4.7376]
[1761226092333,4.7366,189.99,189.94,4.7376]
[1761226092539,2.61,189.98,189.91,4.7382]
[1761226093041,2.61,189.98,189.93,4.7379]
[1761226098439,2.61,190.01,189.96,2.39]
[1761226098649,2.61,190.05,189.96,2.39]
[1761226099948,4.7358,190.02,189.96,7.1271]
[1761226100247,2.61,190.05,189.96,7.1271]
[1761226100443,2.61,190.05,189.97,4.75551175]
[1761226100638,2.61,190.05,189.98,4.75551175]
[1761226100838,2.61,190.05,189.99,4.75551175]
[1761226101047,2.61,190.05,190.0,4.75551175]
[1761226101248,2.61,190.05,190.01,4.75551175]
[1761226101445,2.61,190.05,190.02,4.75551175]
[1761226101749,2.61,190.05,189.96,7.1271]
[1761226101949,4.7356,190.03,189.97,4.75529902]
[1761226102144,4.7356,190.03,189.96,7.1271]
[1761226102145,2.61,190.02,189.98,4.75529902]
[1761226102342,2.61,190.02,189.99,4.75529902]
[1761226102542,2.61,190.02,190.0,4.75529902]
[1761226102745,2.61,190.02,190.01,4.75529902]
[1761226107748,4.85005496,190.05,190.01,4.75529902]
[1761226107749,7.3651,190.05,190.01,7.14529902]
[1761226107948,7.3651,190.05,190.02,4.75529902]
[1761226108147,2.63,190.07,190.03,7.14529902]
[1761226108358,2.63,190.07,190.04,4.75529902]
[1761226108656,2.63,190.07,190.05,4.75529902]
[1761226108848,2.63,190.07,190.03,2.39]
[1761226109047,2.63,190.07,190.04,4.71878749]
[1761226109249,2.63,190.07,190.05,4.71878749]
[1761226109548,4.7344,190.08,190.03,2.39]
[1761226109746,2.83,190.07,190.04,4.71717427]
[1761226109956,7.5646,190.07,190.05,4.71717427]
[1761226110253,7.5646,190.07,190.06,4.71717427]
[1761226110452,52.46005496,190.1,190.06,4.71507811]
[1761226110747,4.7343,190.08,190.03,2.39]
[1761226110951,2.83,190.07,190.04,4.71507324]
[1761226111148,2.83,190.07,190.05,4.71507324]
[1761226111351,2.83,190.07,190.06,4.71507324]
[1761226112650,2.83,190.06,189.97,2.39]
[1761226112852,4.62521486,190.04,189.98,4.71477292]
[1761226113053,2.83,190.03,189.99,4.71477292]
[1761226113250,2.83,190.03,190.0,4.71477292]
[1761226113448,2.83,190.03,190.01,4.71477292]
[1761226113648,2.83,190.03,190.02,4.71477292]
[1761226114056,7.5656,190.03,190.02,4.71477292]
[1761226114351,2.83,190.03,190.02,4.71477292]
[1761226115154,9.36021486,190.05,190.02,4.71477292]
[1761226115451,44.72,190.06,190.0,2.39]
[1761226115658,44.72,190.06,190.02,2.39]
[1761226115954,44.72,190.06,190.01,6.51137043]
[1761226115955,44.72,190.06,190.04,2.39]
[1761226116156,49.32521486,190.08,190.05,4.71615557]
[1761226116354,49.32521486,190.08,190.04,2.39]
[1761226116547,54.05951486,190.08,190.05,4.71299311]
[1761226116750,2.83,190.07,190.02,7.1256]
[1761226116951,2.83,190.07,190.03,7.10299311]
[1761226117155,2.83,190.07,190.04,4.71299311]
[1761226117351,2.83,190.07,190.05,4.71299311]
[1761226117552,2.83,190.07,190.03,2.39]
[1761226117753,2.83,190.07,190.04,4.71169207]
[1761226117952,2.83,190.07,190.05,4.71169207]
[1761226118154,2.83,190.07,190.03,2.39]
[1761226118352,2.83,190.07,190.04,4.71082911]
[1761226118556,2.83,190.07,190.05,4.71082911]
[1761226118761,1.79521486,190.06,190.03,2.39]
[1761226118952,1.79521486,190.06,190.04,4.71083168]
[1761226119154,1.79521486,190.06,190.05,4.71083168]
[1761226119960,46.49521486,190.08,190.06,2.39]
[1761226120259,46.49521486,190.08,190.05,4.71083168]
[1761226120260,46.49521486,190.08,190.07,7.10083168]
[1761226120560,46.49521486,190.08,190.04,2.39]
[1761226120857,46.49521486,190.08,190.05,7.09725216]
[1761226121057,46.49521486,190.08,190.06,4.70725216]
[1761226121058,49.32521486,190.08,190.06,4.70725216]
[1761226121261,49.32521486,190.08,190.05,2.39]
[1761226121464,49.32521486,190.08,190.06,4.70671503]
[1761226121757,49.32521486,190.08,190.05,2.39]
[1761226121955,54.05951486,190.08,190.06,4.70671531]
[1761226122155,2.83,190.07,190.01,4.7358]
[1761226122462,4.62521486,190.06,190.02,7.09646231]
[1761226122659,4.62521486,190.06,190.03,4.70646231]
[1761226122863,4.62521486,190.06,190.04,4.70646231]
[1761226123062,4.62521486,190.06,190.05,4.70646231]
[1761226124665,4.62521486,190.06,190.0,7.1261]
[1761226124978,2.83,190.05,190.01,7.09578341]
[1761226125159,2.83,190.05,190.02,4.70578341]
[1761226125357,2.83,190.05,190.03,4.70578341]
[1761226125552,2.83,190.05,190.04,4.70578341]
[1761226125962,7.5651,190.05,190.04,4.70578341]
[1761226126266,1.79521486,190.06,190.04,4.70578341]
[1761226126469,44.62,190.05,190.01,2.39]
[1761226126658,44.62,190.05,190.02,7.0952661]
[1761226126859,44.62,190.05,190.03,4.7052661]
[1761226127162,44.62,190.05,190.04,4.7052661]
[1761226127762,44.62,190.05,190.04,7.0952661]
[1761226128162,4.85005496,190.13,190.05,2.39]
[1761226128465,35.7,190.12,190.06,4.7052661]
[1761226128663,38.53,190.12,190.07,7.0952661]
[1761226128864,38.53,190.12,190.08,4.7052661]
[1761226129066,35.7,190.12,190.06,2.39]
[1761226129263,35.7,190.12,190.08,2.39]
[1761226129560,40.32521486,190.12,190.08,2.39]
[1761226130362,44.58,190.13,190.08,2.39]
[1761226130964,44.58,190.13,190.09,2.39]
[1761226131262,25.57088995,190.21,189.99,14.27191352]
[1761226131263,9.47526982,190.19,190.12,2.39]
[1761226131467,9.47526982,190.19,190.13,4.69440535]
[1761226131468,53.95681486,190.19,190.13,4.69440535]
[1761226131659,53.95681486,190.19,190.12,2.39]
[1761226131967,53.95681486,190.19,190.13,4.69439144]
[1761226132268,1.79521486,190.16,190.12,2.39]
[1761226132564,1.79521486,190.14,190.07,2.39]
[1761226132762,1.79521486,190.12,190.09,2.39]
[1761226132963,1.79521486,190.12,190.1,4.69286067]
[1761226133268,1.79521486,190.12,190.09,2.39]
[1761226133470,1.79521486,190.12,190.1,4.69138829]
[1761226133772,1.79521486,190.12,190.09,2.39]
[1761226133966,46.39521486,190.14,190.1,7.0814366]
[1761226134269,1.79521486,190.15,190.11,2.39]
[1761226134467,46.39521486,190.15,190.11,2.39]
[1761226134764,2.83,190.19,190.09,2.39]
[1761226134968,1.79521486,190.18,190.11,2.39]
[1761226135268,1.79521486,190.18,190.12,7.08014329]
[1761226135464,1.79521486,190.18,190.12,2.39]
[1761226135865,47.43,190.19,190.14,2.39]
[1761226136060,1.79521486,190.18,190.14,2.39]
[1761226137763,4.62521486,190.18,190.14,2.39]
[1761226137962,1.79521486,190.16,190.13,7.1228]
[1761226138164,1.79521486,190.17,190.14,7.08138691]
[1761226138456,1.79521486,190.17,190.14,2.39]
[1761226139072,2.83,190.18,190.14,2.39]